fUST/lending_fUST_20260127
["ID","MTS","AMOUNT","RATE_DAILY","PERIOD"]
[403710210,1769498398934,-500.0,0.00034738,120]
[403710211,1769498398971,-500.0,0.00034738,120]
[403710212,1769498399007,-386.33340879,0.00034738,120]
[403710213,1769498399041,-500.0,0.00034738,120]
[403710214,1769498399074,-500.0,0.00034738,120]
[403710215,1769498399510,505.21627136,0.00034841,120]
[403710216,1769498399689,500.0,0.00034841,120]
[403710217,1769498399922,500.0,0.00034841,120]
[403710218,1769498399969,500.0,0.00034841,120]
[403710219,1769498400022,500.0,0.00034841,120]
[403710220,1769498400071,500.0,0.00034841,120]
[403710221,1769498401446,500.0,0.00034841,120]
[403710222,1769498402776,500.0,0.00034841,120]
[403710223,1769498403788,434.64558007,0.00034841,120]
[403710224,1769498408173,500.0,0.00034841,120]
[403710225,1769498408396,500.0,0.00034841,120]
[403710226,1769498408652,461.33,0.00034841,120]
[403710227,1769498409182,500.0,0.00034841,120]
[403710228,1769498411099,500.0,0.00034841,120]
[403710229,1769498413421,500.0,0.00034841,120]
[403710230,1769498413703,500.0,0.00034841,120]
[403710231,1769498414971,500.0,0.00034841,120]
[403710232,1769498415132,500.0,0.00034841,120]
[403710233,1769498417704,500.0,0.00034841,120]
[403710234,1769498418745,500.0,0.00034841,120]
[403710235,1769498420063,500.0,0.00034841,120]
[403710236,1769498423517,500.0,0.00034841,120]
[403710237,1769498423564,500.0,0.00034841,120]
[403710238,1769498428206,500.0,0.00034841,120]
[403710239,1769498428666,500.0,0.00034841,120]
[403710240,1769498429424,500.0,0.00034841,120]
[403710241,1769498430153,500.0,0.00034841,120]
[403710242,1769498431595,500.0,0.00034841,120]
[403710243,1769498433879,500.0,0.00034841,120]
[403710244,1769498435780,500.0,0.00034841,120]
[403710245,1769498436682,500.0,0.00034841,120]
[403710246,1769498437561,500.0,0.00034841,120]
[403710247,1769498439349,500.0,0.00034841,120]
[403710248,1769498439614,500.0,0.00034841,120]
[403710249,1769498441478,500.0,0.00034841,120]
[403710250,1769498446300,500.0,0.00034841,120]
[403710251,1769498448186,500.0,0.00034841,120]
[403710252,1769498448230,500.0,0.00034841,120]
[403710253,1769498448421,236.57,0.00034841,120]
[403710254,1769498453078,500.0,0.00034841,120]
[403710255,1769498459765,500.0,0.00034841,120]
[403710256,1769498460435,500.0,0.00034841,120]
[403710257,1769498461213,630.45,0.00034841,120]
[403710258,1769498464190,500.86006746,0.00034841,120]
[403710259,1769498465010,287.94389006,0.00034841,120]
[403710260,1769498466776,634.96,0.00034841,120]
[403710261,1769498468120,500.0,0.00034841,120]
[403710262,1769498468180,500.0,0.00034841,120]
[403710263,1769498472102,500.0,0.00034841,120]
[403710264,1769498472342,500.0,0.00034841,120]
[403710265,1769498472572,500.0,0.00034841,120]
[403710266,1769498472813,500.0,0.00034841,120]
[403710267,1769498473346,500.0,0.00034841,120]
[403710268,1769498473391,500.0,0.00034841,120]
[403710269,1769498473631,500.0,0.00034841,120]
[403710270,1769498473873,500.0,0.00034841,120]
[403710271,1769498474111,224.54394121,0.00034841,120]
[403710272,1769498477236,162.81425006,0.00034841,120]
[403710273,1769498479117,500.0,0.00034841,120]
[403710274,1769498480562,500.0,0.00034841,120]
[403710275,1769498482563,500.0,0.00034841,120]
[403710276,1769498482682,500.0,0.00034841,120]
[403710277,1769498487756,500.0,0.00034841,120]
[403710278,1769498489987,500.0,0.00034841,120]
[403710279,1769498491292,500.0,0.00034841,120]
[403710280,1769498495512,500.0,0.00034841,120]
[403710281,1769498496946,500.0,0.00034841,120]
[403710282,1769498498838,500.0,0.00034841,120]
[403710283,1769498499067,500.0,0.00034841,120]
[403710284,1769498499866,500.0,0.00034841,120]
[403710285,1769498502229,500.0,0.00034841,120]
[403710286,1769498502346,500.0,0.00034841,120]
[403710287,1769498502537,500.0,0.00034841,120]
[403710288,1769498505215,500.0,0.00034841,120]
[403710289,1769498505902,500.0,0.00034841,120]
[403710290,1769498507176,500.0,0.00034841,120]
[403710291,1769498512021,500.0,0.00034841,120]
[403710292,1769498512461,500.0,0.00034841,120]
[403710293,1769498515185,500.0,0.00034841,120]
[403710294,1769498515381,500.0,0.00034841,120]
[403710295,1769498516805,500.0,0.00034841,120]
[403710296,1769498517305,500.0,0.00034841,120]
[403710297,1769498520609,500.0,0.00034841,120]
[403710298,1769498521335,500.0,0.00034841,120]
[403710299,1769498522265,500.0,0.00034841,120]
[403710300,1769498524828,500.0,0.00034841,120]
[403710301,1769498528344,500.0,0.00034841,120]
[403710302,1769498532836,500.0,0.00034841,120]
[403710303,1769498533950,500.0,0.00034841,120]
[403710304,1769498536144,500.0,0.00034841,120]
[403710305,1769498537392,500.0,0.00034841,120]
[403710306,1769498538955,500.0,0.00034841,120]
[403710307,1769498539463,500.0,0.00034841,120]
[403710308,1769498542987,500.0,0.00034841,120]
[403710309,1769498544235,500.0,0.00034841,120]
[403710310,1769498544291,500.0,0.00034841,120]
[403710311,1769498544755,549.53,0.00034841,120]
[403710312,1769498546086,500.0,0.00034841,120]
[403710313,1769498547833,500.0,0.00034841,120]
[403710314,1769498547946,500.0,0.00034841,120]
[403710315,1769498549937,500.0,0.00034841,120]
[403710316,1769498552039,500.0,0.00034841,120]
[403710317,1769498552095,-500.0,9.579e-05,2]
[403710318,1769498554558,500.0,0.00034841,120]
[403710319,1769498556843,500.0,0.00034841,120]
[403710320,1769498557399,500.0,0.00034841,120]
[403710321,1769498558295,500.0,0.00034841,120]
[403710322,1769498558421,500.0,0.00034841,120]
[403710323,1769498559739,500.0,0.00034841,120]
[403710324,1769498561582,500.0,0.00034841,120]
[403710325,1769498565721,500.0,0.00034841,120]
[403710326,1769498567092,500.0,0.00034841,120]
[403710327,1769498568167,500.0,0.00034841,120]
[403710328,1769498569246,500.0,0.00034841,120]
[403710329,1769498569292,500.0,0.00034841,120]
[403710330,1769498570300,500.0,0.00034841,120]
[403710331,1769498571000,537.4176003,0.00034841,120]
[403710332,1769498571158,500.0,0.00034841,120]
[403710333,1769498573567,500.0,0.00034841,120]
[403710334,1769498574464,500.0,0.00034841,120]
[403710335,1769498576249,500.0,0.00034841,120]
[403710336,1769498577923,500.0,0.00034841,120]
[403710337,1769498581063,500.0,0.00034841,120]
[403710338,1769498582988,500.0,0.00034841,120]
[403710339,1769498584937,500.0,0.00034841,120]
[403710340,1769498585170,500.0,0.00034841,120]
[403710341,1769498586310,238.7611945,0.00034841,120]
[403710342,1769498586709,500.0,0.00034841,120]
[403710343,1769498588526,500.0,0.00034841,120]
[403710344,1769498589453,500.0,0.00034841,120]
[403710345,1769498589564,500.0,0.00034841,120]
[403710346,1769498590150,500.0,0.00034841,120]
[403710347,1769498591352,500.0,0.00034841,120]
[403710348,1769498591807,500.0,0.00034841,120]
[403710349,1769498594551,500.0,0.00034841,120]
[403710350,1769498595200,500.0,0.00034841,120]
[403710351,1769498597176,500.0,0.00034841,120]
[403710352,1769498598694,500.0,0.00034841,120]
[403710353,1769498602076,500.0,0.00034841,120]
[403710354,1769498604602,500.0,0.00034841,120]
[403710355,1769498608522,523.7691583,0.00034841,120]
[403710356,1769498608854,500.0,0.00034841,120]
[403710357,1769498615754,500.0,0.00034841,120]
[403710358,1769498618338,500.0,0.00034841,120]
[403710359,1769498619267,502.74291976,0.00034841,120]
[403710360,1769498620580,500.0,0.00034841,120]
[403710361,1769498622361,500.0,0.00034841,120]
[403710362,1769498625019,500.0,0.00034841,120]
[403710363,1769498625792,221.31367962,0.00034841,120]
[403710364,1769498629629,500.0,0.00034841,120]
[403710365,1769498631518,500.0,0.00034841,120]
[403710376,1769498634479,500.0,0.00034841,120]
[403710377,1769498644199,500.0,0.00034841,120]
[403710378,1769498645913,500.0,0.00034841,120]
[403710379,1769498647897,500.0,0.00034841,120]
[403710380,1769498647945,500.0,0.00034841,120]
[403710381,1769498656586,500.0,0.00034841,120]
[403710382,1769498657337,500.0,0.00034841,120]
[403710383,1769498660022,500.0,0.00034841,120]
[403710384,1769498661779,500.0,0.00034841,120]
[403710385,1769498662138,500.0,0.00034841,120]
[403710386,1769498662367,500.0,0.00034841,120]
[403710387,1769498663764,500.0,0.00034841,120]
[403710388,1769498668744,500.0,0.00034841,120]
[403710389,1769498670497,500.0,0.00034841,120]
[403710390,1769498671793,500.0,0.00034841,120]
[403710391,1769498675328,500.0,0.00034841,120]
[403710392,1769498678822,500.0,0.00034841,120]
[403710393,1769498680716,500.0,0.00034841,120]
[403710394,1769498683829,505.30428894,0.00034841,120]
[403710395,1769498684562,556.03407318,0.00034841,120]
[403710396,1769498684904,302.44444581,0.00034841,120]
[403710397,1769498685674,500.0,0.00034841,120]
[403710398,1769498687457,500.0,0.00034841,120]
[403710399,1769498687799,500.0,0.00034841,120]
[403710400,1769498689593,500.0,0.00034841,120]
[403710401,1769498692263,500.0,0.00034841,120]
[403710402,1769498694006,-559.0,9.925e-05,2]
[403710403,1769498694027,-257.96848307,0.00010176,2]
[403710404,1769498694058,-300.0,0.00010427,2]
[403710405,1769498694080,-1200.0,0.00010427,2]
[403710406,1769498694100,-405.09660615,0.00011024,2]
[403710407,1769498694123,-300.0,0.0001134,2]
[403710408,1769498694143,-364.1289992,0.0001134,2]
[403710409,1769498694165,-500.0,0.0001134,2]
[403710410,1769498694191,-500.0,0.0001134,2]
[403710411,1769498694212,-500.0,0.0001134,2]
[403710412,1769498694233,-500.0,0.0001134,2]
[403710413,1769498694252,-374.17875088,0.0001134,2]
[403710414,1769498694274,-500.0,0.0001134,2]
[403710415,1769498694295,-500.0,0.0001134,2]
[403710416,1769498694316,-500.0,0.0001134,2]
[403710417,1769498694337,-500.0,0.0001134,2]
[403710418,1769498694358,-500.0,0.0001134,2]
[403710419,1769498694379,-500.0,0.0001134,2]
[403710420,1769498694400,-500.0,0.0001134,2]
[403710421,1769498694422,-500.0,0.0001134,2]
[403710422,1769498694443,-500.0,0.0001134,2]
[403710423,1769498694464,-500.0,0.0001134,2]
[403710424,1769498694485,-500.0,0.0001134,2]
[403710425,1769498694507,-500.0,0.0001134,2]
[403710426,1769498694528,-616.35556517,0.0001134,2]
[403710427,1769498694557,-500.0,0.0001134,2]
[403710428,1769498694579,-155.02310739,0.0001134,2]
[403710429,1769498694601,-500.0,0.0001134,2]
[403710430,1769498694625,-500.0,0.0001134,2]
[403710431,1769498694648,-500.0,0.0001134,2]
[403710432,1769498694669,-500.0,0.0001134,2]
[403710433,1769498694693,-500.0,0.0001134,2]
[403710434,1769498694716,-500.0,0.0001134,2]
[403710435,1769498694737,-500.0,0.0001134,2]
[403710436,1769498694758,-500.0,0.0001134,2]
[403710437,1769498694783,-500.0,0.0001134,2]
[403710438,1769498694807,-638.16091067,0.0001134,2]
[403710439,1769498694830,-500.0,0.0001134,2]
[403710440,1769498694853,-500.0,0.0001134,2]
[403710441,1769498694874,-500.0,0.0001134,2]
[403710442,1769498694896,-500.0,0.0001134,2]
[403710443,1769498694916,-500.0,0.0001134,2]
[403710444,1769498694937,-500.0,0.0001134,2]
[403710445,1769498694957,-500.0,0.0001134,2]
[403710446,1769498694978,-220.39221593,0.0001134,2]
[403710447,1769498694999,-500.0,0.0001134,2]
[403710448,1769498695020,-500.0,0.0001134,2]
[403710449,1769498695041,-500.0,0.0001134,2]
[403710450,1769498695063,-500.0,0.0001134,2]
[403710451,1769498695085,-500.0,0.0001134,2]
[403710452,1769498695105,-500.0,0.0001134,2]
[403710453,1769498695126,-500.0,0.0001134,2]
[403710454,1769498695146,-500.0,0.0001134,2]
[403710455,1769498695170,-500.0,0.0001134,2]
[403710456,1769498695191,-500.0,0.0001134,2]
[403710457,1769498695211,-500.0,0.0001134,2]
[403710458,1769498695232,-500.0,0.0001134,2]
[403710459,1769498695252,-500.0,0.0001134,2]
[403710460,1769498695272,-500.0,0.0001134,2]
[403710461,1769498695292,-500.0,0.0001134,2]
[403710462,1769498695312,-50000.0,0.00011341,2]
[403710463,1769498695332,-500.0,0.00011342,2]
[403710464,1769498695352,-500.0,0.00011616,2]
[403710465,1769498695375,-500.0,0.0001189,2]
[403710466,1769498695395,-500.0,0.00012164,2]
[403710467,1769498695416,-304.40281002,0.00012176,2]
[403710468,1769498695436,-1567.82,0.00012329,2]
[403710469,1769498695455,-765.25,0.00012329,2]
[403710470,1769498695475,-637.71,0.00012329,2]
[403710471,1769498695495,-531.42,0.00012329,2]
[403710472,1769498695516,-442.85,0.00012329,2]
[403710473,1769498695536,-369.04,0.00012329,2]
[403710474,1769498695557,-307.54,0.00012329,2]
[403710475,1769498695577,-307.54,0.00012329,2]
[403710476,1769498695599,-205.02,0.00012329,2]
[403710477,1769498695622,-170.85,0.00012329,2]
[403710478,1769498695643,-510.35083658,0.00012438,2]
[403710479,1769498695663,-2410.44668903,0.00012449,2]
[403710480,1769498695686,-420.0,0.00012457,2]
[403710481,1769498695896,500.0,0.00034841,120]
[403710482,1769498695952,500.0,0.00034841,120]
[403710483,1769498703950,500.0,0.00034849,120]
[403710484,1769498704919,500.0,0.00034849,120]
[403710485,1769498705813,500.0,0.00034849,120]
[403710486,1769498708140,500.0,0.00034849,120]
[403710487,1769498714341,10000.01,0.00011472,2]
[403710488,1769498714366,10000.01,0.00011472,2]
[403710489,1769498714392,10000.01,0.00011472,2]
[403710490,1769498714419,915.9427635,0.00011472,2]
[403710491,1769498714702,500.0,0.00034849,120]
[403710492,1769498718423,500.0,0.00034849,120]
[403710493,1769498720512,500.0,0.00034849,120]
[403710494,1769498723733,500.0,0.00034849,120]
[403710495,1769498723804,500.0,0.00034849,120]
[403710496,1769498727592,500.0,0.00034849,120]
[403710497,1769498729503,-30915.9727635,0.00012808,2]
[403710498,1769498729526,-432.74452649,0.00013272,2]
[403710499,1769498729549,-500.0,0.00013272,2]
[403710500,1769498729571,-282.23732507,0.00013272,2]
[403710501,1769498729592,-152.92116854,0.00013272,2]
[403710502,1769498729613,-300.0,0.00013272,2]
[403710503,1769498729634,-500.0,0.00013273,2]
[403710504,1769498729655,-500.0,0.00013273,2]
[403710505,1769498729677,-324.94585229,0.00013273,2]
[403710506,1769498729698,-500.0,0.00013273,2]
[403710507,1769498729718,-500.23170738,0.00013273,2]
[403710508,1769498729738,-500.0,0.00013273,2]
[403710509,1769498729760,-500.0,0.00013273,2]
[403710510,1769498729780,-500.0,0.00013273,2]
[403710511,1769498729800,-500.0,0.00013273,2]
[403710512,1769498729820,-500.0,0.00013273,2]
[403710513,1769498729840,-500.0,0.00013273,2]
[403710514,1769498729860,-500.0,0.00013273,2]
[403710515,1769498729880,-500.0,0.00013273,2]
[403710516,1769498729902,-180.12772518,0.00013273,2]
[403710517,1769498729923,-616.47435258,0.00013273,2]
[403710518,1769498729945,-552.44988765,0.00013273,2]
[403710519,1769498729965,-500.0,0.00013273,2]
[403710520,1769498729986,-500.0,0.00013273,2]
[403710521,1769498730007,-500.0,0.00013273,2]
[403710522,1769498730027,-500.0,0.00013273,2]
[403710523,1769498730048,-500.0,0.00013273,2]
[403710524,1769498730068,-500.0,0.00013273,2]
[403710525,1769498730089,-500.0,0.00013273,2]
[403710526,1769498730108,-500.0,0.00013273,2]
[403710527,1769498730129,-500.0,0.00013273,2]
[403710528,1769498730148,-500.0,0.00013273,2]
[403710529,1769498730168,-500.0,0.00013273,2]
[403710530,1769498730190,-500.0,0.00013273,2]
[403710531,1769498730210,-500.0,0.00013273,2]
[403710532,1769498730229,-500.0,0.00013273,2]
[403710533,1769498730250,-500.0,0.00013273,2]
[403710534,1769498730270,-500.0,0.00013273,2]
[403710535,1769498730289,-500.0,0.00013273,2]
[403710536,1769498730309,-500.0,0.00013273,2]
[403710537,1769498730329,-500.0,0.00013273,2]
[403710538,1769498730349,-500.0,0.00013273,2]
[403710539,1769498730370,-302.08825533,0.00013273,2]
[403710540,1769498730389,-226.04161405,0.00013273,2]
[403710541,1769498730409,-261.99881114,0.00013273,2]
[403710542,1769498730431,-500.0,0.00013273,2]
[403710543,1769498730452,-250.74929506,0.00013421,2]
[403710544,1769498730476,-201.23226476,0.00013673,2]
[403710545,1769498730497,-300.0,0.00013673,2]
[403710546,1769498730519,-500.0,0.00013698,2]
[403710547,1769498730542,-500.0,0.00013698,2]
[403710548,1769498730564,-500.0,0.00013698,2]
[403710549,1769498730586,-500.0,0.00013698,2]
[403710550,1769498730607,-500.0,0.00013698,2]
[403710551,1769498730629,-500.0,0.00013698,2]
[403710552,1769498730650,-500.0,0.00013698,2]
[403710553,1769498730678,-500.0,0.00013698,2]
[403710554,1769498730706,-500.0,0.00013698,2]
[403710555,1769498730728,-500.0,0.00013698,2]
[403710556,1769498730750,-500.0,0.00013698,2]
[403710557,1769498730771,-500.0,0.00013698,2]
[403710558,1769498730793,-500.0,0.00013698,2]
[403710559,1769498730813,-500.0,0.00013698,2]
[403710560,1769498730850,-500.0,0.00013698,2]
[403710561,1769498730881,-500.0,0.00013698,2]
[403710562,1769498730902,-500.0,0.00013698,2]
[403710563,1769498730924,-500.0,0.00013698,2]
[403710564,1769498730946,-500.0,0.00013698,2]
[403710565,1769498730967,-500.0,0.00013698,2]
[403710566,1769498730990,-500.0,0.00013698,2]
[403710567,1769498731011,-500.0,0.00013698,2]
[403710568,1769498731032,-500.0,0.00013698,2]
[403710569,1769498731052,-500.0,0.00013698,2]
[403710570,1769498731073,-500.0,0.00013698,2]
[403710571,1769498731093,-500.0,0.00013698,2]
[403710572,1769498731113,-186.52448351,0.00013698,2]
[403710573,1769498731134,-648.81,0.00013698,2]
[403710574,1769498731155,-648.81,0.00013698,2]
[403710575,1769498731176,-648.81,0.00013698,2]
[403710576,1769498731201,-648.81,0.00013698,2]
[403710577,1769498731220,-1000.0,0.00013698,2]
[403710578,1769498731241,-500.0,0.00013698,2]
[403710579,1769498731262,-500.0,0.00013698,2]
[403710580,1769498731281,-500.0,0.00013698,2]
[403710581,1769498731302,-500.0,0.00013698,2]
[403710582,1769498731324,-1529.492647,0.00013699,2]
[403710583,1769498731344,-500.0,0.00013699,2]
[403710584,1769498731364,-500.0,0.00013699,2]
[403710585,1769498731384,-526.45505483,0.00013699,2]
[403710586,1769498731404,-160.26500187,0.00013699,2]
[403710587,1769498731425,-299.9295039,0.00013699,2]
[403710588,1769498731446,-500.56709487,0.00013699,2]
[403710589,1769498731466,-500.24926867,0.00013699,2]
[403710590,1769498731488,-500.0,0.00013699,2]
[403710591,1769498731509,-500.0,0.00013699,2]
[403710592,1769498731531,-501.93006265,0.00013699,2]
[403710593,1769498731552,-500.0,0.00013699,2]
[403710594,1769498731572,-160.25817065,0.00013699,2]
[403710595,1769498731594,-500.0,0.00013699,2]
[403710596,1769498731615,-160.98586548,0.00013699,2]
[403710597,1769498731637,-500.0,0.00013699,2]
[403710598,1769498731659,-500.0,0.00013699,2]
[403710599,1769498731680,-500.0,0.00013699,2]
[403710600,1769498731701,-500.0,0.00013699,2]
[403710601,1769498731721,-500.0,0.00013699,2]
[403710602,1769498731741,-500.0,0.00013699,2]
[403710603,1769498731762,-500.0,0.00013699,2]
[403710604,1769498731784,-500.0,0.00013699,2]
[403710605,1769498731805,-500.0,0.00013699,2]
[403710606,1769498731829,-160.67610577,0.00013699,2]
[403710607,1769498731849,-500.0,0.00013699,2]
[403710608,1769498731870,-462.16420988,0.00013699,2]
[403710609,1769498731893,-612.89276168,0.00013699,2]
[403710610,1769498731914,-302.32459409,0.00013699,2]
[403710611,1769498731935,-500.0,0.00013699,2]
[403710612,1769498731956,-500.65001385,0.00013699,2]
[403710613,1769498731977,-400.38622524,0.00013699,2]
[403710614,1769498731999,-500.0,0.00013699,2]
[403710615,1769498732020,-158.80345848,0.00013699,2]
[403710616,1769498732042,-500.0,0.00013699,2]
[403710617,1769498732065,-500.0,0.00013699,2]
[403710618,1769498732085,-158.1763277,0.00013699,2]
[403710619,1769498732106,-500.0,0.00013699,2]
[403710620,1769498732127,-500.0,0.00013699,2]
[403710621,1769498732148,-158.38045043,0.00013699,2]
[403710622,1769498732170,-500.0,0.00013699,2]
[403710623,1769498732194,-500.51551222,0.00013699,2]
[403710624,1769498732214,-500.81049976,0.00013699,2]
[403710625,1769498732234,-500.0,0.00013699,2]
[403710626,1769498732254,-158.03248936,0.00013699,2]
[403710627,1769498732274,-500.0,0.00013699,2]
[403710628,1769498732295,-567.35253141,0.00013699,2]
[403710629,1769498732317,-500.2910062,0.00013699,2]
[403710630,1769498732339,-500.0,0.00013699,2]
[403710631,1769498732360,-500.0,0.00013699,2]
[403710632,1769498732381,-500.0,0.00013699,2]
[403710633,1769498732402,-501.05668769,0.00013699,2]
[403710634,1769498732422,-500.0,0.00013699,2]
[403710635,1769498732443,-500.0,0.00013699,2]
[403710636,1769498732464,-500.0,0.00013699,2]
[403710637,1769498732486,-501.09593953,0.00013699,2]
[403710638,1769498732508,-500.0,0.00013699,2]
[403710639,1769498732530,-158.90561139,0.00013699,2]
[403710640,1769498732553,-500.0,0.00013699,2]
[403710641,1769498732575,-500.18246026,0.00013699,2]
[403710642,1769498732596,-500.0,0.00013699,2]
[403710643,1769498732618,-500.0,0.00013699,2]
[403710644,1769498732797,-500.69178235,0.00013699,2]
[403710645,1769498732821,-500.0,0.00013699,2]
[403710646,1769498732844,-500.0,0.00013699,2]
[403710647,1769498732866,-165.58700471,0.00013699,2]
[403710648,1769498732888,-500.0,0.00013699,2]
[403710649,1769498732911,-500.0,0.00013699,2]
[403710650,1769498732933,-500.0,0.00013699,2]
[403710651,1769498732954,-501.21829847,0.00013699,2]
[403710652,1769498732975,-301.32592677,0.00013699,2]
[403710653,1769498732996,-500.33960277,0.00013699,2]
[403710654,1769498733017,-500.3335731,0.00013699,2]
[403710655,1769498733039,-526.86363123,0.00013699,2]
[403710656,1769498733068,-152.58064698,0.00013699,2]
[403710657,1769498733090,-158.6253408,0.00013699,2]
[403710658,1769498733111,-500.0,0.00013699,2]
[403710659,1769498733132,-308.60459309,0.00013699,2]
[403710660,1769498733153,-173.92029318,0.00013699,2]
[403710661,1769498733173,-164.19123008,0.00013699,2]
[403710662,1769498733198,-500.36944659,0.00013699,2]
[403710663,1769498733219,-500.0,0.00013699,2]
[403710664,1769498733242,-500.89619199,0.00013699,2]
[403710665,1769498733265,-500.0,0.00013699,2]
[403710666,1769498733286,-638.73037181,0.00013699,2]
[403710667,1769498733307,-500.71917519,0.00013699,2]
[403710668,1769498733328,-525.37478737,0.00013699,2]
[403710669,1769498733349,-536.5376944,0.00013699,2]
[403710670,1769498733370,-500.0,0.00013699,2]
[403710671,1769498733393,-500.0,0.00013699,2]
[403710672,1769498733415,-628.83603339,0.00013699,2]
[403710673,1769498733438,-7156.93950253,0.00014,2]
[403710674,1769498733461,-30915.9727635,0.00014144,2]
[403710675,1769498733484,-350.83713697,0.00014176,2]
[403710676,1769498733506,-474.23438198,0.00014247,2]
[403710677,1769498733575,500.0,0.00034849,120]
[403710678,1769498733681,500.0,0.00034849,120]
[403710679,1769498733762,503.57977061,0.00034849,120]
[403710680,1769498734691,500.0,0.00034849,120]
[403710681,1769498735267,500.0,0.00034849,120]
[403710682,1769498736318,500.0,0.00034849,120]
[403710683,1769498737035,500.0,0.00034849,120]
[403710684,1769498737478,500.0,0.00034849,120]
[403710685,1769498739126,-420.0,0.00014551,2]
[403710686,1769498739148,-1041.66666667,0.00015288,2]
[403710687,1769498739170,-30915.9727635,0.0001548,2]
[403710688,1769498739199,-500.0,0.00015872,2]
[403710689,1769498739223,-500.0,0.00015872,2]
[403710690,1769498739243,-500.0,0.00015872,2]
[403710691,1769498739265,-160.0,0.00015872,2]
[403710692,1769498739291,-251.11019898,0.00015872,2]
[403710693,1769498739312,-587.0,0.00015953,2]
[403710694,1769498739334,-397.27146393,0.00016176,2]
[403710695,1769498739353,-250.0,0.00016438,2]
[403710696,1769498739374,-500.0,0.00016438,2]
[403710697,1769498739395,-597.36308132,0.00016438,2]
[403710698,1769498739419,-500.0,0.00016999,2]
[403710699,1769498739440,-500.0,0.00016999,2]
[403710700,1769498739462,-500.0,0.00016999,2]
[403710701,1769498739487,-164.0,0.00017151,3]
[403710702,1769498739507,-179.50812141,0.00017198,2]
[403710703,1769498739528,-212.00662806,0.00017198,2]
[403710704,1769498739550,-823.0,0.0001749,2]
[403710705,1769498739573,-492.70915793,0.00018151,2]
[403710706,1769498739594,-648.81,0.00018151,2]
[403710707,1769498739613,-500.0,0.00018151,2]
[403710708,1769498739633,-443.70579088,0.00018176,2]
[403710709,1769498739653,-500.0,0.00018333,2]
[403710710,1769498739675,-500.0,0.00018333,2]
[403710711,1769498739694,-500.0,0.00018333,2]
[403710712,1769498739714,-500.0,0.00018333,2]
[403710713,1769498739734,-500.0,0.00018333,2]
[403710714,1769498739753,-500.0,0.00018333,2]
[403710715,1769498739773,-689.379594,0.00018459,2]
[403710716,1769498739817,500.0,0.00034849,120]
[403710717,1769498740612,500.0,0.00034849,120]
[403710718,1769498741572,500.0,0.00034849,120]
[403710719,1769498742816,500.0,0.00034849,120]